bitfinex-derivatives/quotes_ETHF0:USTF0_20250602
["timestamp","ask_amount","ask_price","bid_price","bid_amount"]
[1748855354243,28.27847,2492.6,2492.5,0.00602071]
[1748855354648,23.24547,2492.6,2492.5,0.00602071]
[1748855355050,2.84947,2492.6,2492.5,0.00602071]
[1748855355553,3.8885,2493.3,2492.5,3.21382071]
[1748855355854,0.80183,2493.1,2492.6,1.3643]
[1748855356053,1.2928,2493.2,2492.9,0.80186]
[1748855356350,2.0946,2493.2,2493.0,0.80184]
[1748855356552,0.80181,2493.1,2492.9,0.80186]
[1748855356964,3.2078,2493.0,2492.5,3.21382071]
[1748855357158,20.449,2493.1,2492.7,1.3643]
[1748855357456,0.80191,2492.8,2492.7,1.3643]
[1748855357760,4.5006,2492.9,2492.5,0.80801071]
[1748855357950,1.2928,2492.9,2492.5,0.00602071]
[1748855358155,0.80194,2492.7,2492.6,1.3614]
[1748855358356,0.80197,2492.6,2492.5,0.00602071]
[1748855358555,2.13717,2492.6,2492.5,0.00602071]
[1748855358760,0.80197,2492.6,2492.5,0.00602071]
[1748855359459,0.80191,2492.8,2492.5,5.00602071]
[1748855359761,0.80189,2492.9,2492.8,0.80191]
[1748855360058,0.80189,2492.9,2492.8,1.3614]
[1748855360447,0.80191,2492.8,2492.7,3.2078]
[1748855361051,0.80197,2492.6,2492.5,0.00602071]
[1748855361457,0.7326,2492.9,2492.5,0.00602071]
[1748855361757,0.80197,2492.6,2492.5,2.14721071]
[1748855362754,0.80197,2492.6,2492.5,0.00602071]
[1748855363159,0.8021,2492.2,2492.1,11.6]
[1748855364255,2.1777,2492.2,2492.1,11.6]
[1748855364560,0.7326,2492.3,2492.1,11.6]
[1748855364752,0.8021,2492.2,2492.1,11.6]
[1748855364952,22.6007,2492.2,2492.1,11.6]
[1748855365453,25.8085,2492.2,2492.1,11.6]
[1748855365961,0.80217,2492.0,2491.9,0.00602071]
[1748855366260,0.80229,2491.6,2491.5,0.65736]
[1748855366455,4.01009,2491.6,2491.5,0.65736]
[1748855367459,4.01009,2491.6,2491.3,11.60602071]
[1748855367658,0.80236,2491.4,2491.3,7.1e-07]
[1748855367859,21.38899643,2491.4,2491.3,7.1e-07]
[1748855368061,21.38899643,2491.4,2490.0,2.7773572]
[1748855368062,0.80275,2490.2,2490.1,0.38735677]
[1748855368256,23.5838,2490.2,2490.1,0.38735677]
[1748855368563,0.80278,2490.1,2490.0,0.38735677]
[1748855368753,0.80278,2490.1,2489.1,5.57085462]
[1748855368754,0.20653861,2490.1,2489.1,5.57085462]
[1748855368958,3.2078,2489.4,2489.2,0.08034709]
[1748855369152,21.16304,2489.3,2489.2,0.08034709]
[1748855369555,3.2078,2489.4,2489.2,0.08034709]
[1748855369866,23.5568,2489.6,2489.3,1.2639]
[1748855370257,20.34402071,2489.8,2489.3,1.2639]
[1748855370454,20.34402071,2489.8,2489.3,2.06691]
[1748855370455,0.00602071,2489.8,2489.3,2.06691]
[1748855370759,0.00602071,2489.8,2489.7,4.01071]
[1748855370960,0.00602071,2489.8,2489.7,9.19771]
[1748855371363,0.2002,2490.2,2490.1,0.80278]
[1748855371563,0.2002,2490.2,2489.7,13.3948]
[1748855371564,0.2002,2490.2,2490.0,3.2078]
[1748855371766,0.2002,2490.2,2490.1,2.13308]
[1748855371968,3.2078,2491.1,2490.1,1.3303]
[1748855372266,3.2078,2490.8,2490.2,6.67253]
[1748855372472,3.21382071,2490.8,2490.4,0.00602071]
[1748855373465,4.01045,2490.5,2490.4,0.00602071]
[1748855373860,3.2078,2490.5,2490.4,0.00602071]
[1748855374167,0.00602071,2490.8,2490.4,0.00602071]
[1748855374474,0.80263,2490.6,2490.4,0.00602071]
[1748855374765,0.80264,2490.6,2490.4,0.00602071]
[1748855375066,0.00602071,2490.8,2490.4,0.00602071]
[1748855375270,0.80262,2490.6,2490.4,0.00602071]
[1748855375463,0.8026,2490.7,2490.4,0.00602071]
[1748855375666,0.80859071,2490.8,2490.4,0.00602071]
[1748855375862,0.00602071,2490.8,2490.4,0.00602071]
[1748855376067,0.8026,2490.7,2490.4,0.00602071]
[1748855376267,0.80262,2490.6,2490.4,0.00602071]
[1748855376468,0.80265,2490.5,2490.4,0.00602071]
[1748855376669,4.01043,2490.6,2490.4,0.00602071]
[1748855376867,0.80265,2490.5,2490.4,0.00602071]
[1748855378170,2.18395,2490.5,2490.4,0.00602071]
[1748855378567,0.80265,2490.5,2490.4,0.00602071]
[1748855378771,21.03165,2490.5,2490.4,0.00602071]
[1748855379463,22.42605,2490.5,2490.4,0.00602071]
[1748855379665,21.03165,2490.5,2490.4,0.00602071]
[1748855379867,0.80265,2490.5,2490.4,0.00602071]
[1748855381576,3.2078,2490.6,2490.4,0.00602071]
[1748855381777,3.2078,2490.6,2490.5,0.80265]
[1748855382476,4.01042,2490.6,2490.4,2.15108071]
[1748855382873,3.2078,2490.6,2490.5,0.80265]
[1748855383069,3.2078,2490.6,2490.5,2.12715]
[1748855384072,4.01042,2490.6,2490.5,2.12715]
[1748855384270,3.2078,2490.6,2490.5,2.11740664]
[1748855384777,3.2078,2490.6,2490.5,2.82550664]
[1748855384975,3.2078,2490.6,2490.5,3.52390664]
[1748855385178,3.2078,2490.6,2490.5,13.71290664]
[1748855387081,0.00602071,2490.8,2490.7,0.80258]
[1748855387379,0.80857071,2490.8,2490.7,0.80258]
[1748855387673,0.80857071,2490.8,2490.5,7.92]
[1748855387674,0.80262,2490.6,2490.5,2.0326]
[1748855387876,0.80262,2490.6,2490.5,1.3245]
[1748855389379,0.80265,2490.5,2490.4,0.00602071]
[1748855390879,0.80287,2489.9,2489.6,4.4849]
[1748855391275,0.80287,2489.9,2489.7,1.2771]
[1748855391579,0.80273,2490.3,2490.2,0.80275]
[1748855391779,3.2078,2490.6,2490.0,2.00703]
[1748855391985,3.2078,2490.6,2490.5,0.80265]
[1748855392178,0.00602071,2490.8,2490.7,0.80258]
[1748855393776,0.80857071,2490.8,2490.7,0.80258]
[1748855394578,0.80262,2490.6,2490.5,3.50024]
[1748855394884,0.80262,2490.6,2490.5,2.6976]
[1748855395477,3.2078,2490.7,2490.5,2.6976]
[1748855395679,0.80262,2490.6,2490.5,1.9934]
[1748855395983,4.01041,2490.7,2490.6,0.80262]
[1748855396576,3.2078,2490.7,2490.6,0.80262]
[1748855396784,0.00602071,2490.8,2490.7,0.80258]
[1748855397286,0.80857071,2490.8,2490.7,1.17226568]
[1748855398284,0.80262,2490.6,2490.5,2.79603]
[1748855398475,0.80261,2490.7,2490.6,0.80261]
[1748855398676,0.80261,2490.7,2490.6,1.97553786]
[1748855398886,4.01041,2490.7,2490.6,1.17292786]
[1748855399077,4.01041,2490.7,2489.9,11.32420907]
[1748855399078,9.01041,2490.7,2490.2,1.58320453]
[1748855399274,3.2078,2490.3,2490.2,2.17484]
[1748855399474,4.01051,2490.3,2490.2,1.3721]
[1748855399677,4.01051,2490.3,2490.2,2.54656747]
[1748855400078,4.01051,2490.3,2490.2,1.17446747]
[1748855400381,9.21892352,2490.3,2490.2,1.17446747]
[1748855400587,9.01051,2490.3,2490.2,1.17446747]
[1748855400789,0.80284,2489.9,2489.8,1.58320453]
[1748855401081,0.80284,2489.9,2489.8,2.38605453]
[1748855401280,0.80284,2489.9,2489.8,3.93419565]
[1748855401678,0.80284,2489.9,2489.8,2.35099112]
[1748855401876,2.15164,2489.9,2489.8,2.35099112]
[1748855402480,0.80284,2489.9,2489.8,3.15384112]
[1748855402677,3.2078,2490.0,2489.9,0.80284]
[1748855402886,3.2078,2490.3,2490.2,0.80274]
[1748855403083,3.41611457,2490.3,2490.2,0.80274]
[1748855403287,4.21882457,2490.3,2490.2,1.17548701]
[1748855403690,4.21884598,2490.3,2490.2,1.17548701]
[1748855403891,4.01051,2490.3,2490.2,1.17548701]
[1748855404580,3.2078,2490.3,2490.2,1.17483987]
[1748855404786,3.2078,2490.3,2490.2,1.97758987]
[1748855404988,4.01051,2490.3,2490.2,1.97758987]
[1748855405189,3.2078,2490.3,2490.2,1.97758987]
[1748855405689,4.01051,2490.3,2490.2,1.97757987]
[1748855406089,4.01051,2490.3,2490.2,1.17483987]
[1748855406284,9.01051,2490.3,2490.2,1.17483987]
[1748855406500,0.80284,2489.9,2489.8,1.17550411]
[1748855406803,4.01064,2489.9,2489.8,1.17550411]
[1748855407299,4.01064,2489.9,2489.8,2.51550411]
[1748855407703,4.01064,2489.9,2489.8,1.17550411]
[1748855408307,9.01064,2489.9,2489.8,1.17550411]
[1748855408506,4.01064,2489.9,2489.8,1.17550411]
[1748855410202,4.01064,2489.9,2489.8,1.97837411]
[1748855410203,3.41594346,2489.9,2489.8,1.97837411]
[1748855410506,4.01064,2489.9,2489.8,1.17550411]
[1748855411703,5.27474,2489.9,2489.8,1.17550411]
[1748855412108,4.01064,2489.9,2489.8,1.17550411]
[1748855413502,5.43804,2489.9,2489.8,1.17550411]
[1748855418111,23.81004,2489.9,2489.8,1.17550411]
[1748855420506,4.10704,2489.9,2489.8,1.17550411]
[1748855420703,23.77604,2489.9,2489.8,1.17550411]
[1748855421105,0.0964,2489.9,2489.8,6.97837411]
[1748855421305,0.0964,2489.9,2489.8,12.75247706]
[1748855422010,0.0964,2489.9,2489.8,14.33568159]
[1748855422213,0.0964,2489.9,2489.8,15.73628159]
[1748855422412,0.0964,2489.9,2489.8,10.73628159]
[1748855422909,0.89924,2489.9,2489.8,10.73628159]
[1748855423213,0.89924,2489.9,2489.8,5.14240706]
[1748855424204,0.89924,2489.9,2489.8,5.94527706]
[1748855424914,20.51524,2489.9,2489.8,5.94527706]
[1748855425115,20.51524,2489.9,2489.8,5.14240706]
[1748855425302,23.93161094,2489.9,2489.8,2.35060706]
[1748855425608,23.72304,2489.9,2489.8,2.35060706]
[1748855425806,23.93162247,2489.9,2489.8,1.17550411]
[1748855426202,3.3042,2489.9,2489.8,1.97837411]
[1748855426403,0.89924,2489.9,2489.8,2.35205714]
[1748855426716,1.10781563,2489.9,2489.8,2.35205714]
[1748855427012,0.89924,2489.9,2489.8,3.15492714]
[1748855427211,0.0964,2489.9,2489.8,5.17552714]
[1748855427605,0.0964,2489.9,2489.8,3.99897411]
[1748855428003,0.0964,2489.9,2489.8,5.17637342]
[1748855428406,0.0964,2489.9,2489.8,9.96737795]
[1748855428609,0.0964,2489.9,2489.8,5.17637342]
[1748855428801,0.0964,2489.9,2489.8,8.38417342]
[1748855429213,0.0964,2489.9,2489.8,10.75898022]
[1748855429414,0.0964,2489.9,2489.8,7.55118022]
[1748855429711,0.0964,2489.9,2489.8,12.55118022]
[1748855429915,0.0964,2489.9,2489.8,15.78662884]
[1748855431013,0.0964,2489.9,2489.8,12.57882884]
[1748855431211,0.0964,2489.9,2489.8,15.78662884]
[1748855432314,0.0964,2489.9,2489.8,12.57882884]
[1748855432514,0.89924,2489.9,2489.8,10.78662884]
[1748855432711,4.10704,2489.9,2489.8,3.93607884]
[1748855433018,0.80287,2489.8,2489.7,0.25519884]
[1748855433319,2.0075,2489.5,2488.9,3.16640907]
[1748855433509,4.01093,2489.0,2488.9,3.16640907]
[1748855434017,0.80323,2488.7,2488.6,5.29291134]
[1748855434323,0.80323,2488.7,2488.6,0.80326]
[1748855434324,19.581,2488.7,2488.6,0.80326]
[1748855434514,20.38423,2488.7,2488.5,0.80327]
[1748855434712,0.80326,2488.6,2488.5,0.80327]
[1748855435017,19.581,2488.7,2488.4,0.72532071]
[1748855435209,20.38424,2488.7,2488.4,0.72532071]
[1748855435414,0.80326,2488.6,2488.5,0.80328]
[1748855435616,0.89976,2488.6,2488.5,0.80328]
[1748855436215,0.0965,2488.6,2488.5,0.80328]
[1748855436411,0.0965,2488.6,2488.5,5.80328]
[1748855436612,0.0965,2488.6,2488.5,0.80328]
[1748855437515,0.89976,2488.6,2488.5,0.80328]
[1748855438322,0.80329,2488.5,2488.4,5.44532071]
[1748855438517,0.80329,2488.5,2488.4,6.24865071]
[1748855439018,0.80329,2488.5,2488.4,5.44532071]
[1748855439517,0.0965,2488.6,2488.4,5.44532071]
[1748855439726,0.80329,2488.5,2488.4,5.44532071]
[1748855439934,19.516,2488.5,2488.4,0.00602071]
[1748855440123,19.516,2488.5,2488.4,0.80933071]
[1748855440623,0.0965,2488.6,2488.5,0.80329]
[1748855441322,0.0965,2488.6,2488.5,4.01109]
[1748855441526,0.89976,2488.6,2488.5,0.80329]
[1748855441917,0.0965,2488.6,2488.5,0.80329]
[1748855442326,0.89976,2488.6,2488.5,0.80329]
[1748855442620,0.0965,2488.6,2488.5,0.80329]
[1748855444325,0.80329,2488.5,2488.4,0.80933071]
[1748855444520,0.80329,2488.5,2488.4,0.00602071]
[1748855445520,0.0965,2488.6,2488.5,0.80329]
[1748855445831,0.89976,2488.6,2488.5,1.3872]
[1748855446622,0.0965,2488.6,2488.5,2.19049]
[1748855448922,0.0965,2488.6,2488.4,0.00602071]
[1748855449128,0.80329,2488.5,2488.4,0.00602071]
[1748855450328,2.10439,2488.5,2488.4,0.00602071]
[1748855452426,11.67939,2488.5,2488.4,0.00602071]
[1748855452633,26.14739,2488.5,2488.4,0.00602071]
[1748855453729,21.56139,2488.5,2488.4,0.00602071]
[1748855454130,26.56139,2488.5,2488.4,0.00602071]
[1748855454330,25.8547,2488.5,2487.1,3.38784765]
[1748855454522,25.8547,2488.5,2487.4,0.80364]
[1748855454523,0.80361,2487.6,2487.4,0.80364]
[1748855454723,0.80362,2487.5,2487.3,1.3849]
[1748855454930,4.01145,2487.4,2487.3,1.3849]
[1748855455628,0.80371,2487.2,2487.1,0.00602071]
[1748855457929,2.89751,2487.2,2487.1,0.00602071]
[1748855458534,3.2078,2487.4,2487.1,0.00602071]
[1748855459038,0.80369,2487.3,2487.1,0.80974071]
[1748855459234,0.80371,2487.2,2487.1,0.80974071]
[1748855459635,0.80371,2487.2,2487.1,0.00602071]
[1748855459836,0.80371,2487.3,2487.1,0.80974071]
[1748855460039,0.80371,2487.2,2487.1,0.00602071]
[1748855460229,0.80371,2487.2,2487.1,2.16797071]
[1748855460431,3.2078,2487.4,2487.1,1.36422071]
[1748855460628,0.00602071,2487.6,2487.5,0.80362]
[1748855460828,3.2078,2488.3,2488.2,0.80339]
[1748855461134,0.0966,2488.5,2488.4,0.80333]
[1748855461335,0.89991,2488.5,2488.3,0.80334]
[1748855461526,0.89991,2488.5,2488.4,0.80333]
[1748855461527,0.0966,2488.5,2488.4,0.80333]
[1748855461927,0.0966,2488.5,2488.1,0.7193]
[1748855462438,0.80335,2488.4,2488.2,0.80337]
[1748855462738,0.80339,2488.2,2488.0,0.80345]
[1748855462928,3.2078,2488.1,2487.7,3.8797]
[1748855463129,3.2078,2488.1,2488.0,0.80345]
[1748855463328,3.2078,2488.1,2487.7,0.6719]
[1748855463532,4.01122,2488.1,2488.0,0.80345]
[1748855463731,4.01123,2488.1,2487.9,0.80346]
[1748855463930,4.01123,2488.1,2488.0,0.80345]
[1748855464635,3.2078,2488.4,2487.7,5.88855]
[1748855464841,0.8034,2488.2,2488.0,0.80344]
[1748855465131,22.6998,2488.4,2487.8,2.00881]
[1748855465333,23.50315,2488.4,2488.2,0.80338]
[1748855466038,22.6998,2488.4,2487.7,3.8797]
[1748855466239,0.80337,2488.3,2488.2,0.80338]
[1748855466435,22.6998,2488.4,2488.3,0.80336]
[1748855466642,23.50315,2488.4,2487.9,2.00872]
[1748855466846,3.2078,2488.4,2488.3,0.80336]
[1748855467139,0.0966,2488.5,2488.4,0.80333]
[1748855467441,0.0966,2488.5,2488.2,0.6932]
[1748855467633,0.80341,2488.2,2487.9,2.3917143]
[1748855467833,0.0966,2488.5,2487.9,2.00872]
[1748855468029,0.0966,2488.5,2488.4,0.80333]
[1748855468236,0.89989,2488.5,2488.4,0.80333]
[1748855468735,0.80338,2488.3,2488.2,0.80338]
[1748855469040,0.80337,2488.3,2488.2,0.80337]
[1748855469433,0.89991,2488.5,2488.4,0.80333]
[1748855469633,0.80334,2488.4,2488.3,0.80334]
[1748855469843,0.0966,2488.5,2487.9,3.2078]
[1748855470038,3.2078,2488.3,2488.2,0.80337]
[1748855470245,0.80334,2488.4,2488.3,0.80336]
[1748855471039,0.80334,2488.4,2487.9,2.00869]
[1748855471040,0.89989,2488.5,2488.4,0.80333]
[1748855471447,0.0966,2488.5,2488.0,3.2078]
[1748855471642,0.0966,2488.5,2487.8,1.59558687]
[1748855471842,4.01127,2488.0,2487.7,2.96068687]
[1748855472040,3.2078,2488.0,2487.9,0.80349]
[1748855473249,3.2078,2488.6,2487.9,8.2078]
[1748855473438,0.80331,2488.5,2488.4,0.80331]
[1748855473639,0.80335,2488.4,2488.3,0.80334]
[1748855474044,4.01108,2488.6,2488.5,0.80329]
[1748855474441,0.80331,2488.5,2488.4,0.80329]
[1748855474740,4.10768,2488.6,2488.5,0.80329]
[1748855475442,0.80339,2488.2,2488.1,4.576]
[1748855475849,0.80339,2488.2,2488.1,0.80342]
[1748855476054,2.00824,2488.5,2488.0,0.80344]
[1748855476055,0.80345,2488.1,2488.0,0.80344]
[1748855476350,0.80341,2488.2,2488.1,0.80341]
[1748855476540,0.80344,2488.1,2488.0,0.80343]
[1748855476738,0.80341,2488.2,2488.1,0.80341]
[1748855477137,4.01118,2488.3,2488.2,0.80339]
[1748855477346,23.55618,2488.3,2488.2,0.80339]
[1748855477534,0.80341,2488.2,2488.1,0.8034]
[1748855478548,22.7528,2488.3,2487.9,3.2078]
[1748855478745,0.80345,2488.0,2487.9,4.01129]
[1748855478956,22.7528,2488.3,2487.6,1.59558687]
[1748855479248,0.80367,2487.4,2487.2,0.9178]
[1748855479451,0.80367,2487.4,2486.9,3.60508687]
[1748855479452,3.2078,2487.4,2487.3,0.80368]
[1748855480046,3.2078,2487.4,2487.3,5.80368]
[1748855480351,22.7788,2487.9,2487.2,1.3496]
[1748855480552,3.2078,2487.6,2487.2,1.3496]
[1748855480847,0.80368,2487.3,2487.2,1.3496]
[1748855481048,4.01148,2487.3,2487.2,1.3496]
[1748855481246,0.80371,2487.2,2487.1,0.00602071]
[1748855481440,2.09111,2487.2,2487.1,0.00602071]
[1748855482342,2.80231,2487.2,2487.1,0.00602071]
[1748855482747,7.80231,2487.2,2487.1,0.00602071]
[1748855482939,2.80231,2487.2,2487.1,0.00602071]
[1748855483442,0.80371,2487.2,2487.1,0.00602071]
[1748855483644,20.39071,2487.2,2487.1,0.00602071]
[1748855483843,0.80371,2487.2,2487.1,0.00602071]
[1748855484550,2.16691,2487.2,2487.1,0.00602071]
[1748855485250,3.2078,2487.3,2487.1,0.00602071]
[1748855485447,22.8158,2487.3,2487.1,0.80975071]
[1748855485639,23.61948,2487.3,2487.2,2.15321]
[1748855485842,23.61948,2487.3,2487.2,1.3495]
[1748855486247,0.80371,2487.2,2487.1,0.00602071]
[1748855487451,2.15351,2487.2,2487.1,0.00602071]
[1748855488155,7.15351,2487.2,2487.1,0.00602071]
[1748855488463,0.80404,2486.2,2486.1,1.59558687]
[1748855488752,0.80404,2486.2,2486.0,0.9183]
[1748855488753,0.80407,2486.1,2486.0,1.59558687]
[1748855488953,3.2078,2486.2,2486.1,0.80407]
[1748855489159,3.2078,2486.2,2485.7,2.29998687]
[1748855489352,3.2078,2485.8,2485.7,1.5086]
[1748855489545,3.2078,2485.8,2485.7,1.51463343]
[1748855489746,3.2078,2485.8,2485.7,6.51463343]
[1748855490157,4.01197,2485.8,2485.7,0.71043343]
[1748855491056,3.2078,2485.8,2485.7,1.51463343]
[1748855492464,0.80412,2486.0,2485.9,0.80413]
[1748855492763,0.80408,2486.1,2486.0,0.80408]
[1748855493360,0.80416,2485.9,2485.8,0.80416]
[1748855493557,4.01196,2485.9,2485.8,0.80416]
[1748855493758,3.2078,2485.9,2485.8,0.80416]
[1748855494667,4.01193,2485.9,2485.8,0.80416]
[1748855495264,3.2078,2485.9,2485.8,5.80416]
[1748855496865,0.00603343,2486.2,2485.8,5.80416]
[1748855496866,0.00603343,2486.2,2486.1,0.80407]
[1748855497057,3.2078,2486.8,2486.7,0.80387]
[1748855497254,0.80393,2486.6,2486.5,0.80393]
[1748855497659,0.80396,2486.5,2486.4,0.80395]
[1748855497957,0.80393,2486.6,2486.5,0.80393]
[1748855498266,0.80396,2486.5,2486.4,0.80396]
[1748855498465,0.80399,2486.4,2486.3,0.80399]
[1748855499162,0.804,2486.4,2486.2,0.6867]
[1748855499359,3.2078,2486.5,2486.1,3.2078]
[1748855499665,3.2078,2486.2,2485.7,1.19945938]
[1748855499872,3.2078,2485.8,2485.7,0.00603343]
[1748855500177,19.673,2486.1,2486.0,0.8041]
[1748855500178,3.2078,2486.1,2486.0,0.8041]
[1748855500358,20.46903,2486.3,2486.1,0.80405]
[1748855500557,19.665,2486.3,2485.8,4.4768]
[1748855500757,19.665,2486.3,2486.0,0.8041]
[1748855500758,0.80406,2486.2,2486.0,0.8041]
[1748855500962,20.9354,2486.3,2486.0,0.8041]
[1748855501171,3.9321,2486.4,2485.8,1.269]
[1748855501361,0.7188,2486.6,2486.5,0.80394]
[1748855501668,0.7188,2486.6,2486.0,5.21806]
[1748855501669,3.21383343,2486.7,2486.6,0.80391]
[1748855501965,0.00603343,2486.7,2486.6,0.80391]
[1748855502469,0.00603343,2486.7,2486.6,4.01171]
[1748855502666,0.00603343,2486.7,2486.6,0.80391]
[1748855503462,0.80992343,2486.7,2486.6,0.80391]
[1748855503766,0.80991343,2486.7,2486.6,0.80391]
[1748855504157,0.00603343,2486.7,2486.4,1.3048]
[1748855504561,0.80992343,2486.7,2486.6,0.80391]
[1748855504761,0.80394,2486.5,2486.4,2.10875]
[1748855505258,3.2078,2486.5,2486.1,1.4142]
[1748855505463,3.2078,2486.5,2486.2,0.80401]
[1748855505464,0.80399,2486.4,2486.2,0.80401]
[1748855505658,0.80401,2486.3,2486.2,0.80402]
[1748855505968,0.80399,2486.4,2486.3,0.804]
[1748855506462,23.67177,2486.5,2486.2,1.3474]
[1748855506666,23.67177,2486.5,2486.3,0.80398]
[1748855506964,21.22463,2486.6,2486.5,0.80394]
[1748855507266,20.45993,2486.6,2486.5,0.80394]
[1748855507460,0.73523343,2486.7,2486.6,0.80391]
[1748855507461,0.00603343,2486.7,2486.6,0.80391]
[1748855508766,0.00603343,2486.7,2486.6,2.16811]
[1748855509166,0.80991343,2486.7,2486.6,2.16811]
[1748855509564,0.80394,2486.5,2486.4,4.40527952]
[1748855509862,0.00603343,2486.7,2486.5,0.80394]
[1748855509863,0.80393,2486.6,2486.5,0.80394]
[1748855510264,0.80393,2486.6,2486.2,2.56167952]
[1748855510265,0.00603343,2486.7,2486.6,0.80391]
[1748855510959,0.80397,2486.4,2486.3,2.50754293]
[1748855511265,19.67603343,2486.7,2486.3,2.50754293]
[1748855511458,0.80392,2486.6,2486.5,0.80392]
[1748855511662,20.47992343,2486.7,2486.6,0.80391]
[1748855511966,0.80992343,2486.7,2486.6,0.80391]
[1748855512360,0.00603343,2486.7,2486.6,0.80391]
[1748855514271,0.00603343,2486.7,2486.6,2.00476062]
[1748855514565,0.00603343,2486.7,2486.6,2.40504416]
[1748855515563,0.00603343,2486.7,2486.6,7.40504416]
[1748855516159,0.0967,2486.8,2486.7,0.80387]
[1748855516375,3.2078,2487.6,2487.5,0.80362]
[1748855516570,3.41783903,2487.6,2487.5,0.80362]
[1748855516869,4.01138,2487.6,2487.5,0.80362]
[1748855517059,4.01138,2487.6,2487.3,1.29223343]
[1748855517060,0.80365,2487.4,2487.3,1.29223343]
[1748855517968,0.80364,2487.5,2487.3,1.29223343]
[1748855518272,0.00603343,2487.8,2487.7,0.80355]
[1748855521265,3.43e-06,2487.8,2487.7,7.00224258]
[1748855521470,4.0007,2488.6,2488.1,2.00856]
[1748855521670,3.2078,2488.6,2488.5,0.80329]
[1748855522170,0.80317,2488.9,2488.5,5.80329]
[1748855522171,3.2078,2488.9,2488.5,5.80329]
[1748855522368,3.21383343,2488.9,2488.8,0.8032]
[1748855522573,3.21383343,2488.9,2488.6,1.28983343]
[1748855522762,0.80323,2488.7,2488.6,1.28983343]
[1748855522966,3.21383343,2488.9,2488.6,1.28983343]
[1748855523468,0.80322,2488.8,2488.7,0.80323]
[1748855523769,4.01701343,2488.9,2488.8,0.8032]
[1748855523976,3.21383343,2488.9,2488.8,0.8032]
[1748855524974,3.2078,2489.2,2489.1,0.8031]
[1748855525170,3.2078,2489.2,2489.0,0.80312]
[1748855525363,0.80315,2489.0,2488.9,0.80315]
[1748855525566,0.80315,2489.0,2488.9,2.17125]
[1748855525972,0.80311,2489.1,2489.0,0.80311]
[1748855526179,4.01684983,2489.2,2489.1,0.8031]
[1748855526977,0.80313,2489.1,2489.0,0.80312]
[1748855527175,4.01686983,2489.2,2489.0,0.80313]
[1748855527478,4.01686983,2489.2,2488.9,1.3681]
[1748855527479,3.21376983,2489.2,2489.1,0.8031]
[1748855528275,3.21376983,2489.2,2489.1,2.1712]
[1748855530279,4.01683983,2489.2,2489.1,2.1712]
[1748855530974,0.80316,2489.0,2488.8,0.7482]
[1748855531178,0.80316,2489.0,2488.9,0.80315]
[1748855531378,0.80312,2489.1,2489.0,0.80312]
[1748855531780,0.80311,2489.1,2489.0,0.8031]
[1748855532078,3.21376983,2489.2,2489.1,0.8031]
[1748855532477,4.01683983,2489.2,2489.1,0.8031]
[1748855533978,0.80312,2489.1,2489.0,0.80311]
[1748855534574,0.80315,2489.0,2488.9,0.80314]
[1748855535174,3.21376983,2489.2,2489.1,0.8031]
[1748855535378,4.01683983,2489.2,2489.1,0.8031]
[1748855535778,4.01686983,2489.2,2489.1,0.8031]
[1748855535975,0.80312,2489.1,2489.0,0.8031]
[1748855536282,0.80316,2489.0,2488.9,0.80315]
[1748855537283,3.21376983,2489.2,2489.1,0.8031]
[1748855538582,3.21376983,2489.2,2489.1,5.4761]
[1748855541078,4.01074,2489.7,2489.6,0.80291]
[1748855541380,0.80298,2489.6,2489.5,0.80295]
[1748855541580,0.80297,2489.5,2489.4,2.11998]
[1748855541780,0.80297,2489.6,2489.5,0.80294]
[1748855542393,0.80295,2489.6,2489.4,5.32778]
[1748855542778,0.80292,2489.7,2489.5,0.80295]
[1748855543082,0.80292,2489.7,2489.6,1.317]
[1748855544886,0.8029,2489.8,2489.7,0.80291]
[1748855545089,12.04808,2488.8,2488.4,3.18445787]
[1748855545280,2.00922,2487.3,2486.6,3.2078]
[1748855545481,3.2078,2486.9,2486.5,1.3827]
[1748855545685,0.80383,2486.9,2486.5,2.18662]
[1748855545987,3.2078,2487.2,2486.5,1.3827]
[1748855546188,0.80391,2486.6,2486.5,1.38873343]
[1748855546491,4.01171,2486.6,2486.5,0.00603343]
[1748855547086,4.01171,2486.6,2486.5,1.37463343]
[1748855547580,4.01171,2486.6,2486.5,0.00603343]
[1748855550992,5.40551,2486.6,2486.5,0.00603343]
[1748855551592,5.61504374,2486.6,2486.5,0.00603343]
[1748855551789,5.40551,2486.6,2486.5,0.00603343]
[1748855551982,5.61504599,2486.6,2486.5,0.00603343]
[1748855552186,5.40551,2486.6,2486.5,0.00603343]
[1748855555289,0.8041,2486.0,2485.9,5.18]
[1748855555484,0.80423,2485.6,2485.5,6.5671]
[1748855555681,4.01203,2485.6,2485.5,1.3861]
[1748855557587,0.80426,2485.5,2485.4,5.182]
[1748855557890,0.8043,2485.4,2485.3,0.00603343]
[1748855560893,0.80439,2485.1,2483.7,2.01208]
[1748855561192,0.80486,2483.7,2483.4,0.80493]
[1748855561499,25.575,2485.0,2483.2,1.2987]
[1748855561500,3.2078,2483.5,2483.2,1.2987]
[1748855562205,3.2078,2483.5,2483.1,0.00603343]
[1748855562402,3.2078,2483.2,2483.1,0.81107343]
[1748855562905,3.4091,2483.2,2483.1,0.81107343]
[1748855563107,3.4091,2483.2,2483.1,0.00603343]
[1748855563304,9.21411,2483.2,2483.1,0.00603343]
[1748855564295,0.80512,2482.9,2482.6,0.80519]
[1748855564597,3.2078,2482.7,2482.6,2.1809]
[1748855564900,4.1228,2482.9,2482.6,6.5607]
[1748855565095,4.1228,2482.9,2482.7,1.304]
[1748855565295,4.1228,2482.9,2482.8,0.80514]
[1748855565702,4.1228,2482.9,2482.8,2.10914]
[1748855565893,4.1228,2482.9,2482.8,7.29414]
[1748855566192,4.1228,2482.9,2482.8,0.80514]
[1748855567291,4.1228,2482.9,2482.6,0.81121343]
[1748855567493,2.01336,2482.2,2480.3,3.2078]
[1748855567687,3.2078,2481.1,2480.4,3.2078]